Cogmind - Beta 11.1 @@@ ROGUE MODE // 2022.12.17 @ 15:30:53 Player: QQQQ Result: Destroyed by as-07672 with Assembled Blade Performance ------------- Evolutions (0) 0 Regions Visited (2) 400 Robots Destroyed (14) 70 Value Destroyed (410) 410 Prototype IDs (0) 0 Alien Tech Used (0) 0 Bonus (0) 0 TOTAL SCORE: 880 Bonus ------- None Cogmind --------- Core Integrity 0/250 Matter 300/300 Energy 125/125 System Corruption 1% Temperature Cool (0) Movement Core (150) Ox2 Location -10/Mines Parts ------- > --- POWER (1) -------- Light Ion Engine > --- PROPULSION (2) --- (None) > --- UTILITY (2) ------ Small Storage Unit > --- WEAPON (2) ------- (None) > --- INVENTORY (8) ---- Armored Wheel Armored Wheel Improved Heat Sink Improved Heat Sink Sensor Array Signal Interpreter ECM Suite Medium Armor Plating Peak State ------------ > --- POWER ------------ Light Ion Engine > --- PROPULSION ------- Armored Wheel Armored Wheel > --- UTILITY ---------- Small Storage Unit Improved Targeting Computer > --- WEAPON ----------- Autogun Autogun > --- INVENTORY -------- Aluminum Leg Improved Heat Sink Improved Heat Sink Sensor Array Signal Interpreter ECM Suite Medium Armor Plating Autogun [Rating: 13] Favorites ----------- Power Ion Engine Engine Ion Engine Propulsion Aluminum Leg Leg Aluminum Leg Wheel Armored Wheel Utility Small Storage Unit Storage Small Storage Unit Processor Improved Targeting Computer Protection Medium Armor Plating Weapon Autogun Energy Gun Medium Laser Ballistic Gun Autogun Build | -11 -10 -10 ------- Run | Scr Mat Min Slots Evolved . | . . . Power . | . . . Propulsion . | . . . Utility . | . . . Weapon . | . . . Parts Attached 19 | 7 11 1 Power 4 | 1 2 1 Engine 4 | 1 2 1 Core . | . . . Reactor . | . . . Propulsion 5 | 2 3 . Treads . | . . . Leg 3 | 2 1 . Wheel 2 | . 2 . Hover . | . . . Flight . | . . . Utility 3 | 1 2 . Device . | . . . Storage 1 | 1 . . Processor 1 | . 1 . Hackware . | . . . Protection 1 | . 1 . Artifact . | . . . Weapon 7 | 3 4 . Energy Gun 2 | 2 . . Energy Cannon . | . . . Ballistic Gun 5 | 1 4 . Ballistic Cannon . | . . . Launcher . | . . . Special Weapon . | . . . Impact Weapon . | . . . Slashing Weapon . | . . . Piercing Weapon . | . . . Special Melee Weapon . | . . . Unidentified Prototypes . | . . . Parts Lost 4 | . . 4 Power . | . . . Propulsion 1 | . . 1 Utility 1 | . . 1 Weapon 2 | . . 2 Highest Loss Streak 4 | . . 4 To Critical Strikes . | . . . Average Slot Usage (%) 97 | . 98 92 Engine 14 | . 14 14 Leg 21 | . 25 . Wheel 5 | . 1 23 Storage 14 | . 14 14 Processor 12 | . 12 12 Energy Gun 1 | . 2 . Ballistic Gun 25 | . 25 25 Naked Turns . | . . . Heaviest Build 16 | 14 16 14 Greatest Support 24 | 20 24 24 Greatest Overweight (x) 4 | 3 1 4 Average Overweight (x) . | . . . Largest Inventory Capacity 8 | 8 8 8 Average Capacity 7 | 7 8 8 Most Carried 8 | 4 8 8 Average Carried 7 | 1 7 8 Final Capacity 8 | 8 8 8 Final Carried 8 | 3 8 8 Class Distribution -------------------- 100% | Mutant Dominant Class ---------------- Mutant | -10/Materials Mutant | -10/Mines Resources | -11 -10 -10 ----------- Run | Scr Mat Min Matter Collected 689 | 217 286 186 Remotely . | . . . Salvage Created 409 | . 368 41 Parts 24 | . 18 6 Haulers Intercepted . | . . . Recyclers Shooed . | . . . Parts Field Recycled . | . . . Retrieved Matter . | . . . Parts Self-Destructed . | . . . Prevented . | . . . Kills | -11 -10 -10 ------- Run | Scr Mat Min Combat Hostiles Destroyed 14 | . 10 4 Guns 13 | . 10 3 AOE 1 | . . 1 Classes Destroyed 4 | . 3 1 Watcher 1 | . 1 . Swarmer 6 | . 3 3 Grunt 7 | . 7 . Assembled 1 | . . 1 Best Kill Streak 4 | . 4 3 Combat Bots Only 4 | . 4 3 Max Kills in Single Turn 2 | . 1 2 Gunslinging . | . . . Exploded 1 | . . 1 Melee . | . . . Uniques/NPCs Destroyed . | . . . Combat | -11 -10 -10 -------- Run | Scr Mat Min Damage Taken 1142 | . 478 664 Core 263 | . 142 121 Absorbed by Shields . | . . . Core Remaining (%) 100 | 100 . . Volleys Fired 37 | . 32 5 Largest 2 | . 2 2 Hottest 46 | . 46 46 Shots Fired 74 | . 64 10 Gun 74 | . 64 10 Cannon . | . . . Launcher . | . . . Special . | . . . Kinetic 74 | . 64 10 Thermal . | . . . Explosive . | . . . Electromagnetic . | . . . Robot Hit Streak 12 | . 12 5 Robot Miss Streak 3 | . 3 1 Penetration Max . | . . . Secondary Targets 2 | . 1 1 Max Gunslinging Chain 1 | . 1 1 Shots Hit Robots 51 | . 45 6 Core Hits 22 | . 17 5 Critical Kills . | . . . Critical Parts Destroyed . | . . . Critical Strikes . | . . . Melee Attacks . | . . . Impact . | . . . Slashing . | . . . Piercing . | . . . Sneak Attacks . | . . . Combat Hostiles . | . . . Follow-up Attacks . | . . . Damage Inflicted 844 | . 691 153 Guns 796 | . 691 105 Cannons . | . . . Explosions 48 | . . 48 Melee . | . . . Ramming . | . . . Kinetic 796 | . 691 105 Thermal 48 | . . 48 Explosive . | . . . Electromagnetic . | . . . Impact . | . . . Slashing . | . . . Piercing . | . . . Highest Corruption 1 | . 1 1 Average Corruption 1 | . 1 1 Corruption Purged . | . . . Corruption Blocked . | . . . Effects 4 | . 4 . Message Errors 1 | . 1 . Matter Fused 1 | . 1 . Heat Flow Errors 1 | . 1 . Data Loss (minor) 1 | . 1 . Overload Shots . | . . . Overflow Damage . | . . . Projectiles . | . . . Explosions . | . . . Melee . | . . . Knockbacks . | . . . Impact . | . . . Kinetic . | . . . Secondary . | . . . Self-Inflicted Damage 93 | . . 93 Shots 3 | . . 3 Rammed . | . . . Targets Rammed . | . . . Kicked . | . . . Crushed . | . . . Highest Temperature 124 | . 124 42 Average Temperature 24 | . 26 11 Received Heat Transfer 219 | . 195 24 Siege Activations . | . . . Robots Corrupted . | . . . Combat Hostiles . | . . . Parts Fried . | . . . Impact Corruptions . | . . . Robots Melted . | . . . Combat Hostiles . | . . . Parts Melted . | . . . Heat Transferred 50 | . . 50 Parts Sabotaged . | . . . Parts Stolen . | . . . Parts Stripped . | . . . Power Chain Reactions . | . . . Missiles Intercepted . | . . . Alert | -11 -10 -10 ------- Run | Scr Mat Min Peak Influence 380 | . 186 380 Initial 72 | . . 72 Average 103 | . 68 352 Maximum Alert Level 1 | . . 1 Low Security (%) 86 | 100 100 4 Level 1 13 | . . 95 Level 2 . | . . . Level 3 . | . . . Level 4 . | . . . Level 5 . | . . . High Security . | . . . Max Security . | . . . Squads Dispatched 2 | . 2 . Investigation . | . . . Extermination . | . . . Reinforcement 2 | . 2 . Assault . | . . . Garrison . | . . . Intercept . | . . . Searches Triggered . | . . . Construction Impeded . | . . . Haulers Reinforced . | . . . Active Scanning Responses . | . . . Cargo Convoy Interrupts . | . . . Stealth | -11 -10 -10 --------- Run | Scr Mat Min Distress Signals 1 | . 1 . Communications Jammed . | . . . Distress Signals . | . . . Times Spotted 33 | . 16 17 Peak Tracking Total 13 | . 5 13 Tactical Retreats 2 | . . 2 Traps | -11 -10 -10 ------- Run | Scr Mat Min Traps Triggered 1 | . 1 . Indirectly . | . . . Trap Hack Attempts . | . . . Triggered . | . . . Disarmed . | . . . Reprogrammed . | . . . Reused . | . . . Traps Extracted . | . . . Installed . | . . . Triggered 1 | . . 1 Machines | -11 -10 -10 ---------- Run | Scr Mat Min Machines Disabled 7 | . . 7 Max in Single Turn 7 | . . 7 Machines Sabotaged . | . . . Garrisons Compromised . | . . . Overloaded Fab Kills . | . . . Hacking | -11 -10 -10 --------- Run | Scr Mat Min Machines Accessed 3 | . 3 . Terminals 2 | . 2 . Fabricators . | . . . Repair Stations . | . . . Recycling Units 1 | . 1 . Scanalyzers . | . . . Garrison Access . | . . . Total Hacks 4 | . 4 . Successful 2 | . 2 . Failed 2 | . 2 . Catastrophic 1 | . 1 . Database Lockouts . | . . . Manual 2 | . 2 . Terminals 3 | . 3 . Fabricators . | . . . Repair Stations . | . . . Recycling Units 1 | . 1 . Scanalyzers . | . . . Garrison Access . | . . . Terminal Hacks 1 | . 1 . Branch Access Points 1 | . 1 . Fabricator Hacks . | . . . Repair Station Hacks . | . . . Recycling Unit Hacks 1 | . 1 . Report Inventory 1 | . 1 . Scanalyzer . | . . . Garrison Access Hacks . | . . . Unauthorized Hacks . | . . . Terminals . | . . . Fabricators . | . . . Repair Stations . | . . . Recycling Units . | . . . Scanalyzers . | . . . Garrison Access . | . . . Data Cores Recovered . | . . . Used . | . . . Hacking Detections 2 | . 2 . Full Trace Events . | . . . Feedback Events . | . . . Feedback Blocked . | . . . Robot Schematics Acquired . | . . . Robots Built . | . . . Authchips . | . . . Time . | . . . Total Robot Build Rating . | . . . Part Schematics Acquired . | . . . Parts Built . | . . . Authchips . | . . . Time . | . . . Total Part Build Rating . | . . . Parts Repaired . | . . . Time . | . . . Parts Recycled . | . . . Recycled Matter . | . . . Retrieved Matter . | . . . Retrieved Components . | . . . Parts Scanalyzed . | . . . Part Schematics Acquired . | . . . Parts Damaged . | . . . Bothacking | -11 -10 -10 ------------ Run | Scr Mat Min Used RIF Installer . | . . . Robots Hacked . | . . . Non-combat . | . . . Combat . | . . . Robot Hacks Applied . | . . . Relay Couplers Released . | . . . Fabnet Peak Effective % . | . . . Robots Rewired . | . . . Allies Hacked . | . . . Hacks Repelled . | . . . Allies | -11 -10 -10 -------- Run | Scr Mat Min Total Allies . | . . . Largest Group . | . . . Highest-Rated Group . | . . . Highest-Rated Ally . | . . . Total Orders . | . . . Ally Attacks . | . . . Total Damage . | . . . Kills . | . . . Allies Corrupted . | . . . Allies Melted . | . . . Intel | -11 -10 -10 ------- Run | Scr Mat Min Robot Analysis Total . | . . . Derelict Logs Recovered . | . . . Drone Launches . | . . . Drone Recoveries . | . . . Exploration | -11 -10 -10 ------------- Run | Scr Mat Min Turns Passed 879 | 71 682 126 Spaces Moved 582 | 47 422 113 Core 9 | 6 . 3 Treads . | . . . Legs 432 | 41 391 . Wheels 141 | . 31 110 Hover . | . . . Flight . | . . . Fastest Speed 50 | 50 90 90 Average Speed 113 | 124 117 94 Slowest Speed 250 | 200 120 250 Overloaded Moves . | . . . Propulsion Burnouts . | . . . Robots Hopped . | . . . Cave-ins Triggered . | . . . Exploration Rate (%) 36 | 3 68 37 Regions Visited 2 Branch Regions 1 Pre-discovered Areas . | . . . Known Exits Taken 1 | . 1 . Unknown Exits Taken 1 | 1 . . Scrap Searched 1 | . . 1 Spaces Dug . | . . . Terrain Destroyed 38 | . . 38 Melee . | . . . Projectile . | . . . AOE 38 | . . 38 Terrain Rammed . | . . . Walls Destroyed . | . . . Machines Disabled . | . . . Actions | -11 -10 -10 --------- Run | Scr Mat Min Total 741 | 57 559 125 Wait 64 | . 59 5 Move 580 | 46 421 113 Hop . | . . . Pick Up 22 | 3 19 . Fast Attach 8 | 6 2 . Attach 4 | 1 3 . Detach 3 | 1 2 . Swap 7 | . 6 1 Drop 16 | . 15 1 Fire 37 | . 32 5 Melee . | . . . Ram . | . . . Kick . | . . . Crush . | . . . Escape Stasis . | . . . Rewire . | . . . Trap . | . . . Miscellaneous . | . . . Route ------- -11/Scrapyard -10/Materials (discovered 3 exits: [*Mat x2] / *Min) -10/Mines History --------- Turn | Location | Event 2 | -11/Scrapyard | Met Revision 17 17 | -11/Scrapyard | Discovered new exit (range 16) 72 | -11/Scrapyard | Entered Materials 193 | -10/Materials | Identified exit to Mines 254 | -10/Materials | Discovered new exit (range 5) 304 | -10/Materials | Build established: Mutant 412 | -10/Materials | Discovered new exit (range 3) 647 | -10/Materials | Core integrity fell below 50% 754 | -10/Materials | Entered Mines 782 | -10/Mines | Assembled infested the area 877 | -10/Mines | Core integrity fell below 20% 880 | -10/Mines | Destroyed by as-07672 with Assembled Blade Last Messages --------------- 00835_ as-41859 destroyed. 00838_ Acquired 14 matter. 00847_ Acquired 43 matter. 00849_ Acquired 76 matter. 00851_ A derelict is hurriedly installing traps. 00853_ AZ-NMJ(g): "Hehe, this'll put a wrench in their mining defense operations..." 00853_ AZ-NMJ(g) slips into the shadows. 00859_ Searching scrap... 00859_ Found Lgt. Ion Engine. 00859_ Found Targeting Computer. 00859_ Found Mining Laser. 00859_ Found Weapon Shielding. 00859_ Found 25 Matter. 00860_ Acquired 25 matter. 00863_ Arm. Wheel destroyed. 00869_ Arm. Wheel severed. 00871_ Acquired 13 matter. 00872_ Autogun destroyed. 00879_ Imp. Targeting Computer destroyed. Map ----- +----------------------------------------------------+ | [ "#????????????????????????????????????????? | | "#????????????????????????????????????????? | | "#????????????????????????????????????????? | | "#????????????????????????????????????????? | | "#????????????????????????????????????????? | | " " ####????????????????????????????????????????? | | # "###???????????????????????????????????????????? | | # #???????????????????????????????????????????? | | #### #???????????????????????????????????????????? | | #### #####???????????????????????????????????????? | | # # #???????????????????????????????????????? | | #???????????????????????????????????????? | | # ### #???????????????????????????????????????? | | # ### #???????????????????????????????????????? | | # ## #?????????????#?????????????????????????? | | # #$ =###########??*#???? #?????????????????? | | # # !* ! ##" #!"###=## #??????????????????? | | # ## ### " # |!%!|! #??????????????????? | | # ######?# ; * !=####### #??????????????????? | | #??????# " #????? ##?????????????????? | | = ?????## " #????# ##????????????????? | | ?????#"| ]%= ##???# ##???????????????? | | ?????#"%" % ##### ## #????????????? | | ?????## =aa #????????????? | | ??????# aaa #????????????? | | ### ?????# #####@ ##?????????????? | | #???#?????# ##"# ####???## #??????????????? | | ??????????# ## # #????????# #??????????????? | | ??????????# ?###%#?????????# ##??????????????? | | ??????????# ???#*#??????????# #???????????????? | | ??????????# ???%!#??????????? #???????????????? | | ??????????##???###???????????? #??????????????? | | ??????????????????????????????? ?????????????? | | ???????????????????????????????? ????????????? | | ????????????????????????????????? #???????????? | | ?????????????????????????????????? #????????????? | | ??????????????????????????????????? #????????????? | | ?????????????????????????????????????????????????? | | ?????????????????????????????????????????????????? | | ?????????????????????????????????????????????????? | | ?????????????????????????????????????????????????? | | ?????????????????????????????????????????????????? | | ?????????????????????????????????????????????????? | | ?????????????????????????????????????????????????? | | ?????????????????????????????????????????????????? | | ?????????????????????????????????????????????????? | | ?????????????????????????????????????????????????? | | | | | | | +----------------------------------------------------+ Best States ------------- Heat Dissipation 25 Energy Generation 10 Energy Capacity 250 Matter Stores 300 Matter Capacity 300 Sight Range 16 Terrain Scan Density 10 Evasion (%) 55 Targeting Accuracy 6 Item Schematics ----------------- None Robot Schematics ------------------ None Fabricated ------------ Nothing Alien Tech Used ----------------- None Achievements -------------- None Challenges ------------ None Game ------ Seed GrapheneGhostMicrothruster Manual? 0 Play Time 00:18:46 Cumulative 32.5 hours Start 2022.12.17 @ 15:10:38 End 2022.12.17 @ 15:30:53 Sessions 1 Manual Loads 0 Difficulty Rogue Special Mode None Game No. 22 Rogue 22 Adventurer 0 Explorer 0 Win Type - Total 0 Types 0/0/0/0/0/0/0/0/0 Lore% 33 Gallery% 30 Achievement% 29 Wizard Run 0 Options --------- ASCII 0 Keyboard 1 Movement Numpad Keybinds 0 Fullscreen 2 Font 18/TerminusBold Map View 76x50 Tactical HUD 1 Map Filters NONE Filters NONE Steam 1 RUN: 3c53d3fa-25d4-4591-b372-954494b16f2e